bitfinex/quotes_BTCUSD_20250601
["timestamp","ask_amount","ask_price","bid_price","bid_amount"]
[1748753728573,0.22195846,104680.0,104670.0,0.64127218]
[1748753728711,0.22195846,104680.0,104670.0,0.65908236]
[1748753728938,0.22195846,104680.0,104670.0,0.85015907]
[1748753729410,0.22195846,104680.0,104670.0,0.85015902]
[1748753729724,0.22195846,104680.0,104670.0,0.8234438]
[1748753729957,0.22195846,104680.0,104670.0,0.63997471]
[1748753730240,0.22195846,104680.0,104670.0,0.63997461]
[1748753730393,0.22195846,104680.0,104670.0,0.34789461]
[1748753730604,0.20615846,104680.0,104670.0,0.02671509]
[1748753730987,0.19105846,104680.0,104670.0,0.02671509]
[1748753731636,0.02866259,104660.0,104650.0,0.9800728]
[1748753731874,0.02866259,104660.0,104650.0,1.29882058]
[1748753732076,0.02866259,104660.0,104650.0,1.29882209]
[1748753732538,0.02866259,104660.0,104650.0,1.2810169]
[1748753732742,0.02866259,104660.0,104650.0,1.28991375]
[1748753732988,0.02866259,104660.0,104650.0,1.30181423]
[1748753733188,0.02866259,104660.0,104650.0,1.30181241]
[1748753733495,0.03821733,104660.0,104650.0,1.30181241]
[1748753733690,0.03821733,104660.0,104650.0,1.30180831]
[1748753733810,0.02866259,104660.0,104650.0,1.30180831]
[1748753734029,0.03821715,104660.0,104650.0,1.2751128]
[1748753734278,0.03821715,104660.0,104650.0,1.30380644]
[1748753734478,0.01910812,104660.0,104650.0,1.30380644]
[1748753735092,0.01910812,104660.0,104650.0,0.92220644]
[1748753735295,0.02866241,104660.0,104650.0,1.30384507]
[1748753735704,0.01910812,104660.0,104650.0,1.30383955]
[1748753736111,0.01910812,104660.0,104650.0,0.92219956]
[1748753736433,0.01910812,104660.0,104650.0,1.30379867]
[1748753736774,0.01910812,104660.0,104650.0,1.2771128]
[1748753736986,0.01910812,104660.0,104650.0,1.3037969]
[1748753737183,0.01910812,104660.0,104650.0,1.30379653]
[1748753737479,0.01910812,104660.0,104650.0,1.30379466]
[1748753737685,0.01910812,104660.0,104650.0,1.28600675]
[1748753737908,0.01910812,104660.0,104650.0,1.30379466]
[1748753738445,0.01910812,104660.0,104650.0,1.30379404]
[1748753738647,0.01910812,104660.0,104650.0,1.3037928]
[1748753738848,0.01910812,104660.0,104650.0,1.28600613]
[1748753739085,0.01910812,104660.0,104650.0,1.3037928]
[1748753739398,0.01910802,104660.0,104650.0,1.30379231]
[1748753739639,0.01910802,104660.0,104650.0,1.30379163]
[1748753740263,0.01910802,104660.0,104650.0,1.30379129]
[1748753740466,0.01910802,104660.0,104650.0,1.30379004]
[1748753740713,0.01910802,104660.0,104650.0,1.28600521]
[1748753740887,0.01910802,104660.0,104650.0,1.2771128]
[1748753741102,0.01910802,104660.0,104650.0,1.29489763]
[1748753741308,0.01910802,104660.0,104650.0,1.2771128]
[1748753741713,0.01910802,104660.0,104650.0,1.28600508]
[1748753741895,0.01910802,104660.0,104650.0,1.29489719]
[1748753742097,0.01910802,104660.0,104650.0,1.30378938]
[1748753742542,0.01910802,104660.0,104650.0,1.30378922]
[1748753742680,0.01910802,104660.0,104650.0,1.28600483]
[1748753742876,0.03540802,104660.0,104650.0,1.3037889]
[1748753743092,0.03540802,104660.0,104650.0,1.29489687]
[1748753743293,0.03540802,104660.0,104650.0,1.3037889]
[1748753743497,0.03540802,104660.0,104650.0,1.30378862]
[1748753744378,0.05180802,104660.0,104650.0,1.2771128]
[1748753744586,0.05180802,104660.0,104650.0,1.30378695]
[1748753744783,0.05180802,104660.0,104650.0,1.30378697]
[1748753745157,0.05180802,104660.0,104650.0,1.29489555]
[1748753745355,0.05180802,104660.0,104650.0,1.30378692]
[1748753745560,0.05180802,104660.0,104650.0,1.2771128]
[1748753745913,0.05180802,104660.0,104650.0,1.30382692]
[1748753746059,0.05180802,104660.0,104650.0,1.30382695]
[1748753746254,0.05180802,104660.0,104650.0,1.30382685]
[1748753746465,0.05180802,104660.0,104650.0,1.30382707]
[1748753746674,0.06136231,104660.0,104650.0,1.30382708]
[1748753746890,0.05180802,104660.0,104650.0,1.30382713]
[1748753747749,0.05180802,104660.0,104650.0,1.30382735]
[1748753748096,0.05180802,104660.0,104650.0,1.30382745]
[1748753748293,0.0613624,104660.0,104650.0,1.30382745]
[1748753748499,0.05180802,104660.0,104650.0,1.30382787]
[1748753748698,0.05180802,104660.0,104650.0,1.30382788]
[1748753749333,0.05180802,104660.0,104650.0,1.30382843]
[1748753749541,0.04225392,104660.0,104650.0,1.30382889]
[1748753750365,0.04225392,104660.0,104650.0,1.30382944]
[1748753750607,0.04225392,104660.0,104650.0,1.2771528]
[1748753750780,0.04225392,104660.0,104650.0,1.30382994]
[1748753751393,0.04225392,104660.0,104650.0,1.30383038]
[1748753751592,0.04225392,104660.0,104650.0,1.30383127]
[1748753752149,0.0327,104660.0,104650.0,1.29493894]
[1748753752349,0.0327,104660.0,104650.0,1.30383268]
[1748753752472,0.0327,104660.0,104650.0,1.30383303]
[1748753753239,0.0327,104660.0,104650.0,1.28604621]
[1748753753448,0.01910638,104670.0,104660.0,0.2197581]
[1748753753650,0.0422531,104670.0,104660.0,0.56762028]
[1748753753784,0.0327,104670.0,104660.0,0.54093762]
[1748753753996,0.0327,104670.0,104660.0,0.86211714]
[1748753754213,0.0327,104670.0,104660.0,0.23754433]
[1748753754447,0.0327,104670.0,104660.0,0.54983088]
[1748753754676,0.0327,104670.0,104660.0,0.86311714]
[1748753754882,0.0327,104670.0,104660.0,0.88190362]
[1748753755239,0.0327,104670.0,104660.0,0.55183157]
[1748753755380,0.0327,104670.0,104660.0,0.54293762]
[1748753755584,0.0327,104670.0,104660.0,0.5518326]
[1748753755945,0.0422531,104670.0,104660.0,0.55183488]
[1748753756147,0.0422531,104670.0,104660.0,0.86411714]
[1748753756588,0.0422531,104670.0,104660.0,0.88191434]
[1748753756801,0.0422531,104670.0,104660.0,0.8908128]
[1748753757234,0.0422531,104670.0,104660.0,0.56963307]
[1748753757631,0.0422531,104670.0,104660.0,0.56963407]
[1748753757780,0.0422531,104670.0,104660.0,0.54293762]
[1748753758267,0.05180638,104670.0,104660.0,0.24846077]
[1748753758447,0.05180638,104670.0,104660.0,0.2217581]
[1748753758650,0.05180638,104670.0,104660.0,0.55183868]
[1748753758975,0.0422531,104670.0,104660.0,0.56073966]
[1748753759089,0.05180638,104670.0,104660.0,0.54293762]
[1748753759292,0.05180638,104670.0,104660.0,0.56964684]
[1748753759502,0.05180638,104670.0,104660.0,0.54293762]
[1748753759706,0.0422531,104670.0,104660.0,0.54293762]
[1748753759948,0.0422531,104670.0,104660.0,0.55184058]
[1748753760123,0.05180629,104670.0,104660.0,0.54293762]
[1748753760332,0.05180629,104670.0,104660.0,0.87302311]
[1748753760596,0.05180629,104670.0,104660.0,0.86411714]
[1748753760732,0.03550629,104670.0,104660.0,0.86411714]
[1748753761140,0.04505957,104670.0,104660.0,0.89083479]
[1748753761682,0.03550629,104670.0,104660.0,0.89083479]
[1748753761885,0.01910629,104670.0,104660.0,0.89083046]
[1748753762107,0.01910629,104670.0,104660.0,0.55184207]
[1748753762284,0.01910629,104670.0,104660.0,0.55184212]
[1748753762485,0.01910629,104670.0,104660.0,0.54293762]
[1748753762712,0.01910629,104670.0,104660.0,0.56965103]
[1748753763731,0.01910629,104670.0,104660.0,0.56074461]
[1748753763937,0.02865966,104670.0,104660.0,0.5696481]
[1748753764414,0.02865966,104670.0,104660.0,0.56964852]
[1748753764572,0.02865966,104670.0,104660.0,0.56964767]
[1748753764972,0.02865966,104670.0,104660.0,0.57632473]
[1748753765356,0.02865966,104670.0,104660.0,0.86888473]
[1748753765561,0.03821313,104670.0,104660.0,0.86888319]
[1748753765777,0.02865966,104670.0,104660.0,0.86888319]
[1748753765983,0.02865966,104670.0,104660.0,0.95840319]
[1748753766194,0.02865966,104670.0,104660.0,0.94282308]
[1748753766451,0.02865966,104670.0,104660.0,0.95840285]
[1748753766610,0.02865966,104670.0,104660.0,0.95840286]
[1748753767039,0.02865966,104670.0,104660.0,0.95172538]
[1748753767362,0.02865966,104670.0,104660.0,0.9428225]
[1748753767510,0.02865966,104670.0,104660.0,0.95172494]
[1748753767961,0.02865966,104670.0,104660.0,0.95172455]
[1748753768330,0.02865966,104670.0,104660.0,0.95172445]
[1748753768942,0.02865966,104670.0,104660.0,0.9517244]
[1748753769583,0.02865966,104670.0,104660.0,0.95172413]
[1748753769773,0.03821313,104670.0,104660.0,0.95172413]
[1748753770237,0.06921313,104670.0,104660.0,0.95172415]
[1748753770389,0.06921313,104670.0,104660.0,0.94282198]
[1748753770596,0.06921313,104670.0,104660.0,0.95172416]
[1748753771856,0.05965966,104670.0,104660.0,0.94282198]
[1748753772078,0.05965966,104670.0,104660.0,0.95172418]
[1748753772276,0.06921313,104670.0,104660.0,0.95172418]
[1748753772482,0.06921313,104670.0,104660.0,0.9517243]
[1748753772884,0.06921313,104670.0,104660.0,0.9514044]
[1748753773114,0.06921313,104670.0,104660.0,0.9609585]
[1748753773323,0.07876669,104670.0,104660.0,0.93425182]
[1748753773523,0.07876669,104670.0,104660.0,0.96095845]
[1748753774019,0.07876669,104670.0,104660.0,0.96095735]
[1748753774155,0.07876669,104670.0,104660.0,0.96095736]
[1748753774564,0.07876669,104670.0,104660.0,0.96095737]
[1748753775554,0.07876669,104670.0,104660.0,0.96095739]
[1748753775731,0.07876669,104670.0,104660.0,0.93425182]
[1748753775890,0.07876669,104670.0,104660.0,0.96095785]
[1748753776111,0.07876669,104670.0,104660.0,0.96095667]
[1748753776314,0.07876669,104670.0,104660.0,0.95205308]
[1748753776498,0.07876669,104670.0,104660.0,0.95205264]
[1748753776703,0.04776669,104670.0,104660.0,0.9431522]
[1748753776949,0.03821313,104670.0,104660.0,0.96095297]
[1748753777144,0.05411313,104670.0,104660.0,0.95205259]
[1748753777350,0.06991313,104670.0,104660.0,0.9609533]
[1748753777626,0.06991313,104670.0,104660.0,0.96095396]
[1748753777817,0.06991313,104670.0,104660.0,0.94315253]
[1748753778013,0.06991313,104670.0,104660.0,0.96095396]
[1748753778301,0.06991313,104670.0,104660.0,0.96095423]
[1748753778510,0.06991313,104670.0,104660.0,0.96095476]
[1748753778692,0.06991313,104670.0,104660.0,0.96095494]
[1748753778894,0.06991313,104670.0,104660.0,0.96095532]
[1748753779114,0.06991313,104670.0,104660.0,0.93425182]
[1748753779248,0.06991313,104670.0,104660.0,0.94315339]
[1748753779452,0.06991313,104670.0,104660.0,0.94315341]
[1748753779641,0.06991313,104670.0,104660.0,0.96095659]
[1748753779862,0.06991313,104670.0,104660.0,0.93425182]
[1748753780464,0.06991313,104670.0,104660.0,0.95205673]
[1748753780672,0.06991313,104670.0,104660.0,0.93425182]
[1748753781117,0.06991313,104670.0,104660.0,0.95205689]
[1748753781316,0.06991313,104670.0,104660.0,0.94315506]
[1748753781465,0.06035966,104670.0,104660.0,0.95205847]
[1748753781826,0.06035966,104670.0,104660.0,0.95205855]
[1748753781974,0.0589502,104670.0,104660.0,0.93425182]
[1748753782169,0.05895011,104670.0,104660.0,0.94315546]
[1748753782427,0.05895011,104670.0,104660.0,0.96096284]
[1748753782645,0.05895011,104670.0,104660.0,0.96096613]
[1748753782853,0.06850358,104670.0,104660.0,0.96096614]
[1748753783153,0.05270358,104670.0,104660.0,0.96096614]
[1748753783306,0.03680358,104670.0,104660.0,0.95206137]
[1748753783515,0.03680358,104670.0,104660.0,0.96097394]
[1748753784144,0.03680358,104670.0,104660.0,0.96097391]
[1748753784343,0.02725011,104670.0,104660.0,0.96097391]
[1748753784554,0.03680358,104670.0,104660.0,0.96097388]
[1748753784862,0.03680358,104670.0,104660.0,0.96097372]
[1748753785067,0.02725011,104670.0,104660.0,0.96097372]
[1748753785274,0.02725011,104670.0,104660.0,0.96097361]
[1748753785767,0.03680358,104670.0,104660.0,0.96097373]
[1748753786315,0.03680358,104670.0,104660.0,0.96097399]
[1748753786523,0.03680358,104670.0,104660.0,0.9520666]
[1748753786725,0.02725011,104670.0,104660.0,0.960974]
[1748753786955,0.02725011,104670.0,104660.0,0.96097398]
[1748753787396,0.05945011,104670.0,104660.0,0.96097473]
[1748753787569,0.05945011,104670.0,104660.0,0.96097485]
[1748753787970,0.05945011,104670.0,104660.0,0.94315952]
[1748753788184,0.05945011,104670.0,104660.0,0.96097497]
[1748753788697,0.05945011,104670.0,104660.0,0.960975]
[1748753789459,0.05945011,104670.0,104660.0,0.96097505]
[1748753789677,0.05945011,104670.0,104660.0,0.96097507]
[1748753790032,0.04989683,104670.0,104660.0,0.96097506]
[1748753790232,0.04989683,104670.0,104660.0,0.9520673]
[1748753790472,0.04989683,104670.0,104660.0,0.96097504]
[1748753790706,0.0594502,104670.0,104660.0,0.96097504]
[1748753791093,0.0594502,104670.0,104660.0,0.96097509]
[1748753791395,0.0594502,104670.0,104660.0,0.94315961]
[1748753791698,0.0594502,104670.0,104660.0,0.96097535]
[1748753791914,0.0594502,104670.0,104660.0,0.96097554]
[1748753792054,0.0594502,104670.0,104660.0,0.96097631]
[1748753792800,0.0594502,104670.0,104660.0,0.93425182]
[1748753793004,0.0594502,104670.0,104660.0,0.96097718]
[1748753793302,0.0594502,104670.0,104660.0,0.96097714]
[1748753793511,0.0594502,104670.0,104660.0,0.9609774]
[1748753793707,0.0594502,104670.0,104660.0,0.95206901]
[1748753793908,0.0594502,104670.0,104660.0,0.9609776]
[1748753794957,0.0594502,104670.0,104660.0,0.96097775]
[1748753795362,0.04989683,104670.0,104660.0,0.96097824]
[1748753795529,0.0594502,104670.0,104660.0,0.96097824]
[1748753795739,0.0594502,104670.0,104660.0,0.96097792]
[1748753795939,0.0594502,104670.0,104660.0,0.96097787]
[1748753796341,0.0594502,104670.0,104660.0,0.96097786]
[1748753796561,0.04989683,104670.0,104660.0,0.96097786]
[1748753796895,0.04989683,104670.0,104660.0,0.96097799]
[1748753797193,0.0594502,104670.0,104660.0,0.96097799]
[1748753797598,0.0436502,104670.0,104660.0,0.96097799]
[1748753797798,0.0272502,104670.0,104660.0,0.96097799]
[1748753798176,0.0272502,104670.0,104660.0,0.96097818]
[1748753798378,0.0272502,104670.0,104660.0,0.95206927]
[1748753798571,0.0272502,104670.0,104660.0,0.96097815]
[1748753798767,0.01769683,104670.0,104660.0,0.96097845]
[1748753799095,0.0272502,104670.0,104660.0,0.93425182]
[1748753799301,0.0272502,104670.0,104660.0,0.96097844]
[1748753799474,0.0272502,104670.0,104660.0,0.66873844]
[1748753799663,0.0272502,104670.0,104660.0,0.96077844]
[1748753800460,0.0272502,104670.0,104660.0,0.96077856]
[1748753800641,0.0272502,104670.0,104660.0,0.96077865]
[1748753800839,0.01769683,104670.0,104660.0,0.96077831]
[1748753801064,0.02725011,104670.0,104660.0,0.96077829]
[1748753801828,0.02725011,104670.0,104660.0,0.63069008]
[1748753802027,0.02725011,104670.0,104660.0,0.94296071]
[1748753802238,0.02725011,104670.0,104660.0,0.96077849]
[1748753802483,0.02725011,104670.0,104660.0,0.96077882]
[1748753802782,0.03680348,104670.0,104660.0,0.96077882]
[1748753804639,0.03680348,104670.0,104660.0,0.6129123]
[1748753804799,0.04635704,104670.0,104660.0,0.96081889]
[1748753805014,0.04635704,104670.0,104660.0,0.93409182]
[1748753805220,0.04635704,104670.0,104660.0,0.960819]
[1748753805377,0.03680348,104670.0,104660.0,0.960819]
[1748753805695,0.03680348,104670.0,104660.0,0.96081899]
[1748753806091,0.04635704,104670.0,104660.0,0.96081899]
[1748753806282,0.03680348,104670.0,104660.0,0.96081895]
[1748753806484,0.03680348,104670.0,104660.0,0.96081897]
[1748753806685,0.03680348,104670.0,104660.0,0.96081901]
[1748753807063,0.03680348,104670.0,104660.0,0.96081899]
[1748753807277,0.04635713,104670.0,104660.0,0.96081899]
[1748753807476,0.04635704,104670.0,104660.0,0.96081898]
[1748753807884,0.04635704,104670.0,104660.0,0.96081893]
[1748753808178,0.03680348,104670.0,104660.0,0.96081894]
[1748753808323,0.04635704,104670.0,104660.0,0.9519099]
[1748753808522,0.04635704,104670.0,104660.0,0.96081893]
[1748753808785,0.04776705,104670.0,104660.0,0.96081898]
[1748753808989,0.0382134,104670.0,104660.0,0.96081898]
[1748753809186,0.0382134,104670.0,104660.0,0.96081901]
[1748753809727,0.0382134,104670.0,104660.0,0.96081891]
[1748753809928,0.0382134,104670.0,104660.0,0.93409182]
[1748753810138,0.0382134,104670.0,104660.0,0.96081891]
[1748753810678,0.0382134,104670.0,104660.0,0.9608189]
[1748753810891,0.0477876,104670.0,104660.0,0.9608189]
[1748753811109,0.0781876,104670.0,104660.0,0.9608189]
[1748753811488,0.0781876,104670.0,104660.0,0.95190983]
[1748753811692,0.08774125,104670.0,104660.0,0.96081883]
[1748753812116,0.08774125,104670.0,104660.0,0.9608188]
[1748753812806,0.08774125,104670.0,104660.0,0.93409182]
[1748753813038,0.08774125,104670.0,104660.0,0.9608188]
[1748753813465,0.08774125,104670.0,104660.0,0.95190981]
[1748753813669,0.08774125,104670.0,104660.0,0.9608188]
[1748753814078,0.0686134,104670.0,104660.0,0.9608188]
[1748753814517,0.07816705,104670.0,104660.0,0.9608188]
[1748753814723,0.07816705,104670.0,104660.0,0.96081875]
[1748753814963,0.0781676,104670.0,104660.0,0.94967274]
[1748753815168,0.0781676,104670.0,104660.0,0.96749062]
[1748753815577,0.06861386,104670.0,104660.0,0.96749077]
[1748753815784,0.06861386,104670.0,104660.0,0.96749075]
[1748753815998,0.06861386,104670.0,104660.0,0.64631123]
[1748753816178,0.25384431,104670.0,104660.0,0.55722807]
[1748753816383,0.0477676,104670.0,104660.0,0.95785655]
[1748753816588,0.0477676,104670.0,104660.0,0.63667703]
[1748753816962,0.0477676,104670.0,104660.0,0.63667702]
[1748753817174,0.0477676,104670.0,104660.0,0.62776805]
[1748753817378,0.0477676,104670.0,104660.0,0.95785655]
[1748753817724,0.0477676,104670.0,104660.0,0.95785645]
[1748753818111,0.0477676,104670.0,104660.0,0.9311296]
[1748753818327,0.0477676,104670.0,104660.0,0.95785645]
[1748753818668,0.0477676,104670.0,104660.0,0.95785634]
[1748753819074,0.0477676,104670.0,104660.0,0.94003851]
[1748753819275,0.0477676,104670.0,104660.0,0.95785634]
[1748753819476,0.0477676,104670.0,104660.0,0.95785633]
[1748753819890,0.0477676,104670.0,104660.0,0.9311296]
[1748753820096,0.0477676,104670.0,104660.0,0.95785627]
[1748753820674,0.0477676,104670.0,104660.0,0.95785626]
[1748753820847,0.0477676,104670.0,104660.0,0.95785625]
[1748753821248,0.0477676,104670.0,104660.0,0.94003848]
[1748753821454,0.0477676,104670.0,104660.0,0.95785625]
[1748753821933,0.0477676,104670.0,104660.0,0.95785623]
[1748753822153,0.0477676,104670.0,104660.0,0.9311296]
[1748753822523,0.0477676,104670.0,104660.0,0.95785619]
[1748753822659,0.0477676,104670.0,104660.0,0.94003846]
[1748753823068,0.0477676,104670.0,104660.0,0.95785618]
[1748753823293,0.0477676,104670.0,104660.0,0.95785615]
[1748753823496,0.0477676,104670.0,104660.0,0.95785614]
[1748753824386,0.0477676,104670.0,104660.0,0.94894729]
[1748753824556,0.0477676,104670.0,104660.0,0.95785613]
[1748753825734,0.03821386,104670.0,104660.0,0.95785664]
[1748753826328,0.02866021,104670.0,104660.0,0.95785631]
[1748753826544,0.03821386,104670.0,104660.0,0.95785615]
[1748753826763,0.03821386,104670.0,104660.0,0.94003845]
[1748753826975,0.03821386,104670.0,104660.0,0.95785615]
[1748753827550,0.04776769,104670.0,104660.0,0.34467663]
[1748753827781,0.04776769,104670.0,104660.0,0.95785615]
[1748753828319,0.04776769,104670.0,104660.0,0.94003845]
[1748753828501,0.04776769,104670.0,104660.0,0.95785616]
[1748753828704,0.03821386,104670.0,104660.0,0.95785616]
[1748753829108,0.0477676,104670.0,104660.0,0.95785616]
[1748753829768,0.0477676,104670.0,104660.0,0.95785618]
[1748753830106,0.03821432,104670.0,104660.0,0.95785622]
[1748753830359,0.03821432,104670.0,104660.0,0.95118424]
[1748753830360,0.04776815,104670.0,104660.0,0.95118424]
[1748753831071,0.03821432,104670.0,104660.0,0.94227537]
[1748753831275,0.03821432,104670.0,104660.0,0.95118427]
[1748753831809,0.03821432,104670.0,104660.0,0.95118439]
[1748753832423,0.02866058,104670.0,104660.0,0.95118439]
[1748753833261,0.02866058,104670.0,104660.0,0.95118447]
[1748753833649,0.02866058,104670.0,104660.0,0.93336662]
[1748753833847,0.02866058,104670.0,104660.0,0.95118463]
[1748753834174,0.02866058,104670.0,104660.0,0.63000512]
[1748753834390,0.02866058,104670.0,104660.0,0.63000513]
[1748753834788,0.02866058,104670.0,104660.0,0.63000519]
[1748753835148,0.02866058,104670.0,104660.0,0.63000531]
[1748753835565,0.02866058,104670.0,104660.0,0.63000532]
[1748753836193,0.03821432,104670.0,104660.0,0.63000532]
[1748753836368,0.03821432,104670.0,104660.0,0.6032781]
[1748753836570,0.03821432,104670.0,104660.0,0.63000532]
[1748753836814,0.05371432,104670.0,104660.0,0.63000532]
[1748753837016,0.05371432,104670.0,104660.0,0.63000538]
[1748753837234,0.06981432,104670.0,104660.0,0.63000538]
[1748753837576,0.06981432,104670.0,104660.0,0.63000545]
[1748753837991,0.06981432,104670.0,104660.0,0.63000552]
[1748753838404,0.06981432,104670.0,104660.0,0.63000557]
[1748753838706,0.06981432,104670.0,104660.0,0.63000574]
[1748753838904,0.06981432,104670.0,104660.0,0.63000577]
[1748753839119,0.06981432,104670.0,104660.0,0.63000568]
[1748753839856,0.06026058,104670.0,104660.0,0.63000566]
[1748753840089,0.06026058,104670.0,104660.0,0.62109645]
[1748753840363,0.06026058,104670.0,104660.0,0.63000562]
[1748753840589,0.06026058,104670.0,104660.0,0.62109645]
[1748753840734,0.06026058,104670.0,104660.0,0.63000562]
[1748753841155,0.06026058,104670.0,104660.0,0.63000559]
[1748753841359,0.04416058,104670.0,104660.0,0.63000558]
[1748753841857,0.04416058,104670.0,104660.0,0.63000556]
[1748753842199,0.02866058,104670.0,104660.0,0.63000556]
[1748753842373,0.01910693,104670.0,104660.0,0.63000556]
[1748753842587,0.02866003,104670.0,104660.0,0.63000556]
[1748753842946,0.02866003,104670.0,104660.0,0.95118508]
[1748753843913,0.02866003,104670.0,104660.0,0.95118505]
[1748753844075,0.04466003,104670.0,104660.0,0.95118505]
[1748753844562,0.04466003,104670.0,104660.0,0.95118508]
[1748753844766,0.06991368,104670.0,104660.0,0.95118508]
[1748753844944,0.06991368,104670.0,104660.0,0.95118507]
[1748753845092,0.06991368,104670.0,104660.0,0.95118504]
[1748753846040,0.06991368,104670.0,104660.0,0.95118506]
[1748753846422,0.06991368,104670.0,104660.0,0.95118508]
[1748753847045,0.06991368,104670.0,104660.0,0.93336677]
[1748753847256,0.06991368,104670.0,104660.0,0.95118507]
[1748753847451,0.06991368,104670.0,104660.0,0.95110507]
[1748753847659,0.06991368,104670.0,104660.0,0.95110505]
[1748753848047,0.06991368,104670.0,104660.0,0.95110504]
[1748753848889,0.06991368,104670.0,104660.0,0.95110502]
[1748753849744,0.06991368,104670.0,104660.0,0.92437762]
[1748753849940,0.05421368,104670.0,104660.0,0.95110513]
[1748753850364,0.03821368,104670.0,104660.0,0.95110523]
[1748753850770,0.03821368,104670.0,104660.0,0.95110528]
[1748753850985,0.03821368,104670.0,104660.0,0.93328685]
[1748753851172,0.03821368,104670.0,104660.0,0.95110532]
[1748753851955,0.03821368,104670.0,104660.0,0.95110501]
[1748753852816,0.02866003,104670.0,104660.0,0.95110501]
[1748753853021,0.03821368,104670.0,104660.0,0.95110501]
[1748753854312,0.04776742,104670.0,104660.0,0.95110501]
[1748753855296,0.04776815,104670.0,104660.0,0.95110501]
[1748753855543,0.02866058,104670.0,104660.0,0.95110502]
[1748753857025,0.02866058,104670.0,104660.0,0.95110503]
[1748753857252,0.02866058,104670.0,104660.0,0.95110504]
[1748753857669,0.02866058,104670.0,104660.0,0.93328675]
[1748753857844,0.02866058,104670.0,104660.0,0.95110502]
[1748753858073,0.02866058,104670.0,104660.0,0.95110503]
[1748753859062,0.02866058,104670.0,104660.0,0.94219589]
[1748753859225,0.02866058,104670.0,104660.0,0.95110507]
[1748753859449,0.02866058,104670.0,104660.0,0.92437762]
[1748753859687,0.02866058,104670.0,104660.0,0.95110507]
[1748753860527,0.02866058,104670.0,104660.0,0.92437762]
[1748753860726,0.02866058,104670.0,104660.0,0.95110811]
[1748753861253,0.02866058,104670.0,104660.0,0.95110831]
[1748753861528,0.02866058,104670.0,104660.0,0.93328798]
[1748753861730,0.02866058,104670.0,104660.0,0.94219834]
[1748753861938,0.02866058,104670.0,104660.0,0.9511087]
[1748753862445,0.02866058,104670.0,104660.0,0.93328798]
[1748753862689,0.02866058,104670.0,104660.0,0.95110874]
[1748753862940,0.02866058,104670.0,104660.0,0.95110877]
[1748753863407,0.02866058,104670.0,104660.0,0.95110883]
[1748753863617,0.02866058,104670.0,104660.0,0.95110882]
[1748753864563,0.01910693,104670.0,104660.0,0.95110885]
[1748753864768,0.02866058,104670.0,104660.0,0.95110885]
[1748753865137,0.02866058,104670.0,104660.0,0.94219844]
[1748753865337,0.02866058,104670.0,104660.0,0.95110885]
[1748753865557,0.02866058,104670.0,104660.0,0.95110887]
[1748753865773,0.02866058,104670.0,104660.0,0.95110892]
[1748753866088,0.02866058,104670.0,104660.0,0.95110894]
[1748753866813,0.02866058,104670.0,104660.0,0.93328806]
[1748753866953,0.02866058,104670.0,104660.0,0.95110894]
[1748753867152,0.02866058,104670.0,104660.0,0.951109]
[1748753868036,0.02866058,104670.0,104660.0,0.95110921]
[1748753868155,0.02866058,104670.0,104660.0,0.94219866]
[1748753868378,0.02866058,104670.0,104660.0,0.95110918]
[1748753868779,0.02866058,104670.0,104660.0,0.95110925]
[1748753868980,0.02866058,104670.0,104660.0,0.93328818]
[1748753869180,0.02866058,104670.0,104660.0,0.95110922]
[1748753869492,0.02866058,104670.0,104660.0,0.95106918]
[1748753869710,0.02866058,104670.0,104660.0,0.92433762]
[1748753869923,0.02866058,104670.0,104660.0,0.95106961]
[1748753870649,0.02866058,104670.0,104660.0,0.65914961]
[1748753870860,0.02866058,104670.0,104660.0,0.95102945]
[1748753871069,0.02866058,104670.0,104660.0,0.93320811]
[1748753871280,0.02866058,104670.0,104660.0,0.95102913]
[1748753871451,0.02866058,104670.0,104660.0,0.94211864]
[1748753871634,0.02866058,104670.0,104660.0,0.95102916]
[1748753871836,0.02866058,104670.0,104660.0,0.95103077]
[1748753872037,0.02866058,104670.0,104660.0,0.951032]
[1748753872476,0.02866058,104670.0,104660.0,0.9510323]
[1748753872826,0.02866058,104670.0,104660.0,0.95103391]
[1748753873188,0.02866058,104670.0,104660.0,0.95103386]
[1748753873727,0.02866058,104670.0,104660.0,0.9332097]
[1748753873985,0.02866058,104670.0,104660.0,0.95103385]
[1748753874390,0.02866058,104670.0,104660.0,0.95103383]
[1748753875017,0.02866058,104670.0,104660.0,0.94212176]
[1748753875217,0.02866058,104670.0,104660.0,0.95103425]
[1748753875678,0.02866058,104670.0,104660.0,0.9332098]
[1748753875887,0.02866058,104670.0,104660.0,0.9510343]
[1748753876241,0.02866058,104670.0,104660.0,0.92429762]
[1748753876448,0.02866058,104670.0,104660.0,0.95103435]
[1748753877003,0.02866058,104670.0,104660.0,0.93320986]
[1748753877220,0.02866058,104670.0,104660.0,0.95103429]
[1748753877425,0.02866058,104670.0,104660.0,0.95103428]
[1748753877810,0.02866058,104670.0,104660.0,0.95103426]
[1748753879730,0.02866058,104670.0,104660.0,0.92429762]
[1748753880106,0.02866058,104670.0,104660.0,0.9510354]
[1748753881949,0.02866058,104670.0,104660.0,0.94212281]
[1748753882155,0.02866058,104670.0,104660.0,0.9510354]
[1748753882352,0.02866058,104670.0,104660.0,0.62985588]
[1748753882661,0.02866058,104670.0,104660.0,0.95103573]
[1748753882959,0.02866058,104670.0,104660.0,0.95103577]
[1748753883096,0.02866058,104670.0,104660.0,0.94212305]
[1748753883404,0.02866058,104670.0,104660.0,0.9510358]
[1748753884163,0.02866058,104670.0,104660.0,0.92429762]
[1748753884462,0.02866058,104670.0,104660.0,0.94212337]
[1748753884773,0.02866058,104670.0,104660.0,0.95103624]
[1748753884976,0.02866058,104670.0,104660.0,0.95103628]
[1748753885413,0.02866058,104670.0,104660.0,0.55185053]
[1748753885661,0.02866058,104670.0,104660.0,0.9509563]
[1748753886135,0.02866058,104670.0,104660.0,0.9420434]
[1748753886352,0.02866058,104670.0,104660.0,0.95095632]
[1748753887266,0.02866058,104670.0,104660.0,0.95095633]
[1748753888129,0.02866058,104670.0,104660.0,0.92421762]
[1748753888469,0.02866058,104670.0,104660.0,0.95095626]
[1748753889010,0.21973729,104670.0,104660.0,0.64956216]
[1748753889344,0.21973729,104670.0,104660.0,0.9420435]
[1748753889518,0.02866058,104670.0,104660.0,0.96051049]
[1748753891170,0.02866058,104670.0,104660.0,0.94268472]
[1748753891370,0.02866058,104670.0,104660.0,0.96051052]
[1748753892168,0.02866058,104670.0,104660.0,0.96051053]
[1748753892458,0.02866058,104670.0,104660.0,0.96051054]
[1748753892627,0.02866058,104670.0,104660.0,0.9605107]
[1748753892788,0.02866058,104670.0,104660.0,0.94268473]
[1748753892996,0.02866058,104670.0,104660.0,0.9605111]
[1748753894331,0.02866058,104670.0,104660.0,0.95159801]
[1748753894710,0.02866058,104670.0,104660.0,0.9605111]
[1748753895755,0.02866058,104670.0,104660.0,0.93377182]
[1748753895950,0.02866058,104670.0,104660.0,0.96051128]
[1748753897077,0.02866058,104670.0,104660.0,0.95159822]
[1748753897281,0.02866058,104670.0,104660.0,0.96051142]
[1748753898375,0.02866058,104670.0,104660.0,0.96051158]
[1748753898532,0.02866058,104670.0,104660.0,0.96051166]
[1748753899272,0.02866058,104670.0,104660.0,0.96051173]